Cogmind - Beta 17 @@@ ROGUE MODE // 2026.07.15 @ 20:52:49 Player: aperiodic Result: Self-destructed Performance ------------- Evolutions (5) 2500 Regions Visited (9) 1800 Robots Destroyed (70) 350 Value Destroyed (1836) 1836 Prototype IDs (38) 760 Alien Tech Used (0) 0 Bonus (1215) 1215 TOTAL SCORE: 8461 Bonus ------- High Alert Combat Kills 58 Follower Combat Kills 57 Registered with UFD 300 Met Optimus in HQ 500 Met Imprinter 300 Cogmind --------- Core Integrity 912/1000 Matter 298/300 Energy 1/100 System Corruption 2% Temperature Cool (3) Movement Flying (37) Location -5/Factory Parts ------- > --- POWER (2) -------- (None) > --- PROPULSION (5) --- Biomechanical Wings Flightbrick > --- UTILITY (8+3) ---- Medium Storage Unit Advanced Sensor Array Advanced Signal Interpreter Makeshift Hacking Suite (+) Improved Hacking Suite (+) Makeshift System Shield Makeshift System Shield > --- WEAPON (2) ------- Power Sword > --- INVENTORY (10) --- IFF Parser Microactuators Advanced Hacking Suite Bomb Factory No. 2 Advanced Plasma Cannon CPS Tube (2) CPS Tube (2) Peak State ------------ > --- POWER ------------ Micro Nuclear Core > --- PROPULSION ------- Biomechanical Wings Flightbrick > --- UTILITY ---------- Medium Storage Unit Advanced Sensor Array Advanced Signal Interpreter Microactuators Makeshift Hacking Suite Makeshift Hacking Suite Improved Hacking Suite Makeshift System Shield Makeshift System Shield Hacking Drone Bay > --- WEAPON ----------- Multitool Power Sword > --- INVENTORY -------- Advanced Sensor Array Bomb Factory No. 2 Long-range Missile Launcher CPS Tube CPS Tube [Rating: 100] Favorites ----------- Power Micro Nuclear Core Engine Subdweller Power Source Power Core Micro Nuclear Core Propulsion Flightbrick Treads Light Treads Wheel Wheel Flight Unit Flightbrick Utility Seismic Detector Device Seismic Detector Storage Large Storage Unit Processor Advanced Signal Interpreter Hackware Makeshift Hacking Suite Protection Propulsion Shielding Weapon Improved Medium Laser Energy Gun Improved Medium Laser Energy Cannon Advanced Plasma Cannon Ballistic Gun Assault Rifle Launcher Long-range Missile Launcher Special Weapon Mining Laser Slashing Weapon Power Sword Build | -11 -10 -10 -8 -6 -6 -6 -6 -5 -5 ------- Run | Yrd Mat Sub Scr Fac Low Low Zio Pro Fac Slots Evolved 10 | . . . . 8 . . . . 2 Power 1 | . . . . . . . . . 1 Propulsion 3 | . . . . 2 . . . . 1 Utility 6 | . . . . 6 . . . . . Weapon . | . . . . . . . . . . Parts Attached 75 | 7 13 5 5 25 2 1 7 . 10 Power 10 | 1 1 2 3 3 . . . . . Engine 6 | 1 1 2 2 . . . . . . Core 4 | . . . 1 3 . . . . . Reactor . | . . . . . . . . . . Propulsion 9 | 2 4 . 1 1 . . . . 1 Treads 2 | . 2 . . . . . . . . Leg . | . . . . . . . . . . Wheel 5 | 2 2 . 1 . . . . . . Hover . | . . . . . . . . . . Flight 2 | . . . . 1 . . . . 1 Utility 39 | 2 2 1 1 17 2 . 7 . 7 Device 15 | 1 1 . 1 7 1 . 3 . 1 Storage 3 | 1 1 . . . 1 . . . . Processor 5 | . . . . 3 . . . . 2 Hackware 7 | . . . . 1 . . 4 . 2 Protection 9 | . . 1 . 6 . . . . 2 Artifact . | . . . . . . . . . . Weapon 17 | 2 6 2 . 4 . 1 . . 2 Energy Gun 6 | 1 4 1 . . . . . . . Energy Cannon 2 | . . 1 . . . . . . 1 Ballistic Gun 5 | 1 1 . . 3 . . . . . Ballistic Cannon . | . . . . . . . . . . Launcher 1 | . . . . . . 1 . . . Special Weapon 2 | . 1 . . . . . . . 1 Impact Weapon . | . . . . . . . . . . Slashing Weapon 1 | . . . . 1 . . . . . Piercing Weapon . | . . . . . . . . . . Special Melee Weapon . | . . . . . . . . . . Unidentified Prototypes 4 | . 1 . . . . . 2 . 1 Corrupted Parts 2 | . . 1 1 . . . . . . System Corruption 7 | . . 6 1 . . . . . . Parts Lost 23 | . . 5 . 7 . . 4 . 7 Power 5 | . . 3 . 1 . . . . 1 Propulsion 2 | . . 1 . 1 . . . . . Utility 12 | . . . . 4 . . 4 . 4 Weapon 4 | . . 1 . 1 . . . . 2 Highest Loss Streak 7 | . . 3 . 7 . . 2 . 3 To Critical Strikes . | . . . . . . . . . . Average Backups 9 | 4 10 13 9 5 7 9 8 8 6 Power . | . 1 . . . . . . . . Propulsion 2 | 2 4 3 2 . 1 1 1 1 . Utility 2 | . . 2 2 . 1 3 3 3 3 Weapon 2 | 1 3 5 2 1 1 2 1 1 1 Tool/Special . | . . . . . . . . . . Unused Backups 29 | . 6 7 7 1 . . 1 . 7 Power 1 | . 1 . . . . . . . . Propulsion 3 | . 1 1 1 . . . . . . Utility 8 | . 1 1 2 . . . 1 . 3 Weapon 12 | . 3 3 3 1 . . . . 2 Tool/Special 5 | . . 2 1 . . . . . 2 Average Slot Usage (%) 81 | . 99 99 83 63 62 61 60 61 71 Engine 7 | . 14 13 11 . . . . . . Core 2 | . . . 1 5 5 5 5 5 4 Treads 2 | . 10 1 . . . . . . . Wheel 11 | . 17 26 14 2 . . . . . Flight 2 | . . . . 2 5 5 5 5 9 Device 13 | . 14 11 13 16 16 16 14 16 8 Storage 9 | . 14 14 13 2 3 5 5 5 5 Processor 3 | . . . . 7 11 11 10 5 8 Hackware 4 | . . . . 2 5 5 7 16 24 Protection 2 | . . 2 . 9 7 5 4 . 3 Energy Gun 14 | . 16 27 28 5 . . . . . Ballistic Gun 1 | . 5 . . 4 1 . . . . Special Weapon 1 | . 5 . . . . . . . 2 Slashing Weapon 1 | . . . . 1 5 5 5 4 4 Peak Build Rating 100 | 7 13 21 29 86 82 79 86 85 100 Average Rating 42 | 5 9 16 24 65 79 78 79 85 95 On Entrance 47 | . 7 13 18 29 81 75 79 85 85 Avg Prop Armor Cover (%) 3 | . . 3 . . . . . . . Naked Turns . | . . . . . . . . . . Heaviest Build 52 | 15 32 41 37 52 24 24 24 23 31 Greatest Support 40 | 26 40 26 28 28 24 24 24 24 30 Greatest Overweight (x) 3 | . 1 3 1 1 . . . . 1 Average Overweight (x) . | . . 1 . . . . . . . Largest Inventory Capacity 15 | 8 15 15 15 15 10 10 10 10 10 Average Capacity 11 | 7 11 15 14 9 8 10 10 10 10 Most Carried 15 | 8 15 15 15 15 9 9 10 9 10 Average Carried 10 | 4 10 14 13 8 7 9 9 9 7 Final Capacity 15 | 8 15 15 15 5 10 10 10 10 10 Final Carried 15 | 8 15 15 15 5 9 9 9 9 8 Scrap Suit Usage (%) 4 | . . . . 36 . . . . . Class Distribution -------------------- 65% | Mutant 16% | Hacker-Mutant 16% | Scout Dominant Class ---------------- Mutant | -10/Materials Mutant | -10/Subcaves Mutant | -8/Scraptown Mutant | -6/Factory Scout | -6/Lower Caves Scout | -6/Lower Caves Scout | -6/Zion Hacker-Mutant | -5/Proximity Caves Hacker-Mutant | -5/Factory Resources | -11 -10 -10 -8 -6 -6 -6 -6 -5 -5 ----------- Run | Yrd Mat Sub Scr Fac Low Low Zio Pro Fac Matter Collected 2154 | 303 468 186 201 320 20 75 98 54 429 Remotely . | . . . . . . . . . . Salvage Created 2183 | 188 472 363 . 451 . 31 31 14 633 Parts 126 | 10 29 20 . 19 . 3 7 7 31 Haulers Intercepted 2 | . 2 . . . . . . . . Recyclers Shooed . | . . . . . . . . . . Parts Field Recycled . | . . . . . . . . . . Retrieved Matter . | . . . . . . . . . . Parts Self-Destructed 21 | . . 11 . . . 4 . 6 . Prevented 2 | . . . . . . 2 . . . Parts Restored . | . . . . . . . . . . Kills | -11 -10 -10 -8 -6 -6 -6 -6 -5 -5 ------- Run | Yrd Mat Sub Scr Fac Low Low Zio Pro Fac Combat Hostiles Destroyed 53 | . 9 7 . 12 . 2 1 5 17 Melee 5 | . . . . 2 . . 1 . 2 Guns 25 | . 9 7 . 9 . . . . . AOE 22 | . . . . . . 2 . 5 15 Classes Destroyed 13 | 2 5 1 . 4 . . . 1 . Worker 3 | . 1 . . . . . . . 2 Builder 1 | . . . . 1 . . . . . Tunneler 4 | 4 . . . . . . . . . Hauler 2 | . 2 . . . . . . . . Recycler 5 | 1 1 . . . . . . . 3 Drone 3 | . . . . . . . . 1 2 Watcher 3 | . 2 . . . . . . . 1 Swarmer 32 | . 3 . . 9 . 2 . 4 14 Grunt 6 | . 6 . . . . . . . . Brawler 1 | . . . . 1 . . . . . Sentry 1 | . . . . 1 . . . . . Programmer 3 | . . . . 1 . . . . 2 Subdweller 7 | . . 7 . . . . . . . Best Kill Streak 7 | 5 3 3 . 7 . 2 1 5 7 Combat Bots Only 7 | . 3 3 . 7 . 2 1 5 6 Max Kills in Single Turn 5 | 1 1 2 . 1 . 2 1 4 5 Gunslinging . | . . . . . . . . . . Exploded 5 | . . . . . . 2 . 4 5 Melee 1 | . . . . 1 . . 1 . 1 Uniques/NPCs Destroyed 1 | . . . . . . . 1 . . Imprinter (-6/Zion) Combat | -11 -10 -10 -8 -6 -6 -6 -6 -5 -5 -------- Run | Yrd Mat Sub Scr Fac Low Low Zio Pro Fac Hostile Shots Fired 442 | . 46 27 . 138 . . 70 29 132 Missed 159 | . 9 6 . 38 . . 38 9 59 Hits 283 | . 37 21 . 100 . . 32 20 73 Melee 2 | . . . . . . . 2 . . Projectile 281 | . 37 21 . 100 . . 30 20 73 AOE 5 | . . 3 . . . . . . 2 Critical Strikes 4 | . 1 2 . . . . . 1 . Part Disruptions 1 | . . . . . . . 1 . . Actively Blocked 1 | . . . . . . . 1 . . Damage Taken 5027 | . 453 658 . 1351 . . 478 365 1722 Core 767 | . 59 132 . 374 . . 96 18 88 Absorbed by Shields . | . . . . . . . . . . Redirected to Shielding 167 | . . . . 45 . . 52 . 70 Ignored by Resistances 13 | . . . . 13 . . . . . Regen/Repaired (Parts) 219 | . 62 . . . . . . . 157 Core Remaining (%) 55 | 100 . . 23 . . . . 42 . Volleys Fired 181 | 11 81 33 . 31 . 1 . 4 20 Largest 2 | 2 2 2 . 2 . 1 . 1 1 Hottest 116 | 70 112 116 . 112 . 43 . 43 98 Shots Fired 290 | 22 130 57 . 56 . 1 . 4 20 Gun 224 | 22 98 48 . 56 . . . . . Cannon 21 | . . 9 . . . . . . 12 Launcher 13 | . . . . . . 1 . 4 8 Special 32 | . 32 . . . . . . . . Kinetic 57 | 11 46 . . . . . . . . Thermal 200 | 11 84 37 . 56 . . . . 12 Explosive 13 | . . . . . . 1 . 4 8 Electromagnetic 20 | . . 20 . . . . . . . Robot Hit Streak 20 | 8 6 20 . 5 . . . 1 8 Robot Miss Streak 5 | 2 2 1 . 5 . . . 3 2 Penetration Max . | . . . . . . . . . . Secondary Targets 6 | . 1 1 . 4 . . . . . Max Gunslinging Chain 1 | . 1 1 . 1 . . . . . Shots Hit Robots 179 | 12 59 45 . 36 . . 2 2 23 Core Hits 105 | 6 23 14 . 18 . 2 2 9 31 Critical Kills . | . . . . . . . . . . Critical Parts Destroyed . | . . . . . . . . . . Critical Strikes 11 | 1 3 1 . 5 . . 1 . . Burn 9 | 1 3 1 . 4 . . . . . Sever 2 | . . . . 1 . . 1 . . Melee Attacks 75 | . . . . 21 . 3 4 3 44 Impact . | . . . . . . . . . . Slashing 75 | . . . . 21 . 3 4 3 44 Piercing . | . . . . . . . . . . Sneak Attacks 15 | . . . . 4 . . . 1 10 Combat Hostiles 1 | . . . . . . . . . 1 Follow-up Attacks . | . . . . . . . . . . Damage Inflicted 6409 | 151 829 774 . 972 . 158 92 453 2980 Guns 2344 | 151 829 774 . 590 . . . . . Cannons . | . . . . . . . . . . Explosions 2427 | . . . . . . 158 . 387 1882 Melee 1638 | . . . . 382 . . 92 66 1098 Ramming . | . . . . . . . . . . Kinetic 381 | 50 331 . . . . . . . . Thermal 1621 | 101 498 432 . 590 . . . . . Explosive 2427 | . . . . . . 158 . 387 1882 Electromagnetic 342 | . . 342 . . . . . . . Impact . | . . . . . . . . . . Slashing 1638 | . . . . 382 . . 92 66 1098 Piercing . | . . . . . . . . . . Highest Corruption 9 | . . 6 1 . . . 8 9 2 Average Corruption 4 | . . 6 1 . . . 8 8 1 Corruption Purged . | . . . . . . . . . . Corruption Blocked . | . . . . . . . . . . Effects 35 | . . 21 . . . . 4 7 3 Message Errors 12 | . . 6 . . . . 1 3 2 Matter Fused 3 | . . 2 . . . . 1 . . Heat Flow Errors 6 | . . 3 . . . . . 2 1 Energy Discharges 8 | . . 6 . . . . 1 1 . Parts Rejected 1 | . . . . . . . 1 . . Data Loss (minor) 1 | . . . . . . . . 1 . Data Loss (major) 2 | . . 2 . . . . . . . Alerts 2 | . . 2 . . . . . . . Overload Shots . | . . . . . . . . . . Overflow Damage 361 | . . . . . . . . 87 274 Projectiles . | . . . . . . . . . . Explosions 118 | . . . . . . . . 61 57 Melee 243 | . . . . . . . . 26 217 Knockbacks . | . . . . . . . . . . Impact . | . . . . . . . . . . Kinetic . | . . . . . . . . . . Secondary . | . . . . . . . . . . Self-Inflicted Damage 161 | . . . . . . . . 25 136 Shots 5 | . . . . . . . . 1 4 Rammed . | . . . . . . . . . . Targets Rammed . | . . . . . . . . . . Kicked . | . . . . . . . . . . Crushed . | . . . . . . . . . . Highest Temperature 255 | 36 255 253 . 162 . . . 254 232 Average Temperature 53 | 12 50 35 . 59 . . . 126 71 Received Heat Transfer 428 | . 237 75 . 42 . . 47 . 27 Siege Activations . | . . . . . . . . . . Martial Activations . | . . . . . . . . . . Shielding Activations . | . . . . . . . . . . Robots Disrupted . | . . . . . . . . . . Combat Hostiles . | . . . . . . . . . . Robots Corrupted . | . . . . . . . . . . Combat Hostiles . | . . . . . . . . . . Parts Fried 1 | . . 1 . . . . . . . Impact Corruptions . | . . . . . . . . . . Robots Melted 1 | . . . . 1 . . . . . Combat Hostiles 1 | . . . . 1 . . . . . Parts Melted 9 | . 2 1 . 6 . . . . . Heat Transferred 4329 | 370 1443 999 . 1517 . . . . . Parts Sabotaged . | . . . . . . . . . . Parts Stolen . | . . . . . . . . . . Parts Stripped . | . . . . . . . . . . Power Chain Reactions . | . . . . . . . . . . Alert | -11 -10 -10 -8 -6 -6 -6 -6 -5 -5 ------- Run | Yrd Mat Sub Scr Fac Low Low Zio Pro Fac Maximum Alert Level 2 | . . . . . . . . . 2 Low Security (%) 73 | 100 100 . . 100 . . . . 8 Level 1 15 | . . . . . . . . . 53 Level 2 11 | . . . . . . . . . 37 Level 3 . | . . . . . . . . . . Level 4 . | . . . . . . . . . . Level 5 . | . . . . . . . . . . High Security . | . . . . . . . . . . Max Security . | . . . . . . . . . . Peak Influence 538 | 15 85 . . 126 . . . . 538 Initial 506 | . . . . . . . . . 506 Average 116 | 2 14 . . 32 . . . . 347 Influence Increases 2742 | 25 372 . . 558 . 80 . 170 1537 Destroy 0b10 Robot/C 920 | . 180 . . 280 . 60 . 80 320 Destroy 0b10 Robot/NC 100 | 25 30 . . 5 . . . 5 35 Destroy Leader 140 | . 38 . . 50 . 10 . 10 32 Allied During Kill 42 | . . . . 32 . 10 . . . Successful Hack 139 | . 33 . . 56 . . . . 50 Select Force Hacks 60 | . 30 . . 30 . . . . . Disable Machine 105 | . 30 . . 15 . . . . 60 Destroy Structure 246 | . 31 . . 15 . . . . 200 Advance Influence 450 | . . . . . . . . . 450 Partial Spotted 45 | . . . . 45 . . . . . Lose Combat Pursuer 495 | . . . . 30 . . . 75 390 Influence Decreases 2315 | 25 329 43 . 503 55 80 . 80 1200 Entered New Map 77 | . . 22 . . 21 . . . 34 Time Decay 1386 | 25 329 21 . 331 34 80 . 80 486 Search Patrol Dispatched 300 | . . . . . . . . . 300 Lost Part 140 | . . . . 70 . . . . 70 Lost Ally 112 | . . . . 102 . . . . 10 Purge Threat 300 | . . . . . . . . . 300 Squads Dispatched 15 | . 1 . . 7 . . . . 7 Investigation 7 | . 1 . . 3 . . . . 3 Extermination 4 | . . . . 2 . . . . 2 Reinforcement 4 | . . . . 2 . . . . 2 Assault . | . . . . . . . . . . Garrison . | . . . . . . . . . . Intercept . | . . . . . . . . . . Searches Triggered 3 | . . . . . . . . . 3 Construction Impeded . | . . . . . . . . . . Haulers Reinforced 1 | . . . . 1 . . . . . Active Scanning Responses . | . . . . . . . . . . Cargo Convoy Interrupts . | . . . . . . . . . . Stealth | -11 -10 -10 -8 -6 -6 -6 -6 -5 -5 --------- Run | Yrd Mat Sub Scr Fac Low Low Zio Pro Fac Distress Signals 3 | . 1 . . . . . . 1 1 Communications Jammed . | . . . . . . . . . . Distress Signals . | . . . . . . . . . . Times Spotted 124 | . 17 7 . 16 . 3 31 11 39 Peak Tracking Total 25 | . 4 3 . 6 . 3 25 6 8 Tactical Retreats 18 | . . . . 2 . . 2 3 11 Traps | -11 -10 -10 -8 -6 -6 -6 -6 -5 -5 ------- Run | Yrd Mat Sub Scr Fac Low Low Zio Pro Fac Traps Triggered 1 | . . 1 . . . . . . . Indirectly . | . . . . . . . . . . Trap Hack Attempts . | . . . . . . . . . . Triggered . | . . . . . . . . . . Disarmed . | . . . . . . . . . . Reprogrammed . | . . . . . . . . . . Reused . | . . . . . . . . . . Traps Extracted . | . . . . . . . . . . Installed . | . . . . . . . . . . Triggered . | . . . . . . . . . . Most Traps Carried 1 | . . . 1 1 . . . . . Machines | -11 -10 -10 -8 -6 -6 -6 -6 -5 -5 ---------- Run | Yrd Mat Sub Scr Fac Low Low Zio Pro Fac Machines Disabled 8 | . 2 1 . 1 . . . . 4 Max in Single Turn 2 | . 1 1 . 1 . . . . 2 Garrison Access 1 | . . . . . . . . . 1 Machines Repaired . | . . . . . . . . . . Machines Dismantled . | . . . . . . . . . . Machines Sabotaged . | . . . . . . . . . . Overloaded Fab Kills . | . . . . . . . . . . Hacking | -11 -10 -10 -8 -6 -6 -6 -6 -5 -5 --------- Run | Yrd Mat Sub Scr Fac Low Low Zio Pro Fac Machines Accessed 41 | . 10 1 2 10 . . 1 . 17 Terminals 25 | . 8 . . 6 . . . . 11 Fabricators 2 | . . . . 1 . . . . 1 Repair Stations 2 | . 1 . . . . . . . 1 Recycling Units 6 | . 1 . . 3 . . . . 2 Scanalyzers 1 | . . . . . . . . . 1 Garrison Access 1 | . . . . . . . . . 1 Total Hacks 125 | . 28 1 2 24 . . 5 . 65 Successful 91 | . 14 1 2 16 . . 5 . 53 Failed 34 | . 14 . . 8 . . . . 12 Catastrophic 2 | . 2 . . . . . . . . Database Lockouts . | . . . . . . . . . . Manual 78 | . 26 . . 17 . . . . 35 Terminals 90 | . 25 . . 19 . . . . 46 Fabricators 3 | . . . . 1 . . . . 2 Repair Stations 4 | . 2 . . . . . . . 2 Recycling Units 7 | . 1 . . 4 . . . . 2 Scanalyzers 12 | . . . . . . . . . 12 Garrison Access 1 | . . . . . . . . . 1 Terminal Hacks 33 | . 3 1 2 2 . . 5 . 20 Record 1 | . . . 1 . . . . . . Part Schematic 8 | . . . . . . . 5 . 3 Robot Analysis 4 | . 1 . . . . . . . 3 Prototype ID Bank 2 | . . . . . . . . . 2 Branch Access Points 2 | . . . . 1 . . . . 1 Terminal Index 1 | . 1 . . . . . . . . Fabricator Index 1 | . . . . . . . . . 1 Repair Station Index 1 | . . . . . . . . . 1 Scanalyzer Index 1 | . . . . . . . . . 1 Alert Level 1 | . . . . . . . . . 1 Unreport Threat 2 | . . . . . . . . . 2 Locate Traps 4 | . 1 . . 1 . . . . 2 Recall Investigation 1 | . . . . . . . . . 1 Zone Layout 2 | . . . . . . . . . 2 Proto ID Catalog 2 | . . 1 1 . . . . . . Fabricator Hacks 3 | . . . . 1 . . . . 2 Load Schematic 1 | . . . . . . . . . 1 Build 2 | . . . . 1 . . . . 1 Repair Station Hacks 4 | . 2 . . . . . . . 2 Scan Component 2 | . 1 . . . . . . . 1 Repair 2 | . 1 . . . . . . . 1 Recycling Unit Hacks . | . . . . . . . . . . Scanalyzer 12 | . . . . . . . . . 12 Insert Component 4 | . . . . . . . . . 4 Analyze 5 | . . . . . . . . . 5 Retrieve Study 3 | . . . . . . . . . 3 Garrison Access Hacks 1 | . . . . . . . . . 1 Seal Access 1 | . . . . . . . . . 1 Unauthorized Hacks 38 | . 9 . . 13 . . . . 16 Terminals 32 | . 8 . . 10 . . . . 14 Track 4 | . . . . 1 . . . . 3 Assimilate 5 | . 2 . . 2 . . . . 1 Botnet 5 | . . . . 2 . . . . 3 Disrupt 1 | . . . . . . . . . 1 Operators 3 | . 1 . . 1 . . . . 1 Skim 14 | . 5 . . 4 . . . . 5 Fabricators . | . . . . . . . . . . Repair Stations . | . . . . . . . . . . Recycling Units 6 | . 1 . . 3 . . . . 2 Tunnel 2 | . 1 . . 1 . . . . . Fedlink 3 | . . . . 1 . . . . 2 Scrapoids 1 | . . . . 1 . . . . . Scanalyzers . | . . . . . . . . . . Garrison Access . | . . . . . . . . . . Data Cores Recovered . | . . . . . . . . . . Used . | . . . . . . . . . . Hacking Detections 21 | . 8 . . 7 . . . . 6 Full Trace Events 1 | . . . . . . . . . 1 Feedback Events . | . . . . . . . . . . Feedback Blocked . | . . . . . . . . . . Robot Schematics Acquired 3 | . . . . . . . 3 . . Robots Built 3 | . . . . 3 . . . . . Authchips . | . . . . . . . . . . Time 134 | . . . . 134 . . . . . Total Robot Build Rating 12 | . . . . 12 . . . . . Part Schematics Acquired 28 | . . . . . . . 21 . 7 Parts Built 1 | . . . . . . . . . 1 Authchips . | . . . . . . . . . . Time 152 | . . . . . . . . . 152 Total Part Build Rating 5 | . . . . . . . . . 5 Part Studies Acquired 3 | . . . . . . . . . 3 Parts Repaired 2 | . 1 . . . . . . . 1 Time 42 | . 26 . . . . . . . 16 Parts Recycled . | . . . . . . . . . . Recycled Matter . | . . . . . . . . . . Retrieved Matter . | . . . . . . . . . . Retrieved Components . | . . . . . . . . . . Parts Scanalyzed 4 | . . . . . . . . . 4 Part Schematics Acquired 4 | . . . . . . . . . 4 Parts Damaged 1 | . . . . . . . . . 1 Bothacking | -11 -10 -10 -8 -6 -6 -6 -6 -5 -5 ------------ Run | Yrd Mat Sub Scr Fac Low Low Zio Pro Fac Used RIF Installer . | . . . . . . . . . . Robots Hacked . | . . . . . . . . . . Non-combat . | . . . . . . . . . . Combat . | . . . . . . . . . . Robot Hacks Applied . | . . . . . . . . . . Relay Couplers Released . | . . . . . . . . . . Fabnet Peak Effective % . | . . . . . . . . . . Robots Rewired . | . . . . . . . . . . Allies Hacked . | . . . . . . . . . . Hacks Repelled . | . . . . . . . . . . Allies | -11 -10 -10 -8 -6 -6 -6 -6 -5 -5 -------- Run | Yrd Mat Sub Scr Fac Low Low Zio Pro Fac Total Allies 14 | . 1 . . 10 . . 2 . 1 Largest Group 9 | . 1 1 1 9 3 3 4 . 1 Highest-Rated Group 210 | . 10 10 10 210 58 58 104 . 26 Highest-Rated Ally 51 | . 10 10 10 51 28 28 31 . 26 Initial UFD Resources 31 | . . . . 22 29 29 29 31 31 Total Orders 3 | . . 2 1 . . . . . . STAY 2 | . . 1 1 . . . . . . FOLLOW 1 | . . 1 . . . . . . . Ally Attacks 50 | . . . . 46 . 2 2 . . Total Damage 880 | . . . . 795 . 35 50 . . Kills 5 | . . . . 3 . 1 1 . . Allies Corrupted . | . . . . . . . . . . Allies Melted 1 | . . . . . . . 1 . . Intel | -11 -10 -10 -8 -6 -6 -6 -6 -5 -5 ------- Run | Yrd Mat Sub Scr Fac Low Low Zio Pro Fac Active Infowar (turns) 9084 | 12 1726 1066 2476 1158 300 313 499 262 1272 Sensors 3569 | . . . . 923 300 313 499 262 1272 IFF 761 | . . . . 672 40 . 49 . . Seismic 5719 | 12 1726 1066 2476 439 . . . . . Robot Analysis Total 4 | . 1 . . . . . . . 3 Derelict Logs Recovered 9 | . . . 4 . 1 . 2 2 . Drone Launches 1 | . . . . . . . . . 1 Drone Recoveries . | . . . . . . . . . . Exploration | -11 -10 -10 -8 -6 -6 -6 -6 -5 -5 ------------- Run | Yrd Mat Sub Scr Fac Low Low Zio Pro Fac Turns Passed 9665 | 123 1726 1343 2566 1247 301 319 499 262 1279 Spaces Moved 10637 | 76 872 1116 2225 1537 608 514 1157 494 2038 Core 5 | 5 . . . . . . . . . Treads 299 | . 282 17 . . . . . . . Legs . | . . . . . . . . . . Wheels 4332 | 71 590 1099 2225 347 . . . . . Hover . | . . . . . . . . . . Flight 6001 | . . . . 1190 608 514 1157 494 2038 Fastest Speed 37 | 50 80 95 100 40 40 40 40 40 37 Average Speed 70 | 89 113 103 112 56 40 40 40 40 37 Slowest Speed 240 | 100 160 240 115 115 40 40 40 40 89 Overloaded Moves . | . . . . . . . . . . Propulsion Burnouts . | . . . . . . . . . . Robots Hopped 41 | . . . . 13 2 . . . 26 Potential Cave-ins . | . . . . . . . . . . Cave-ins Triggered . | . . . . . . . . . . Exploration Rate (%) 60 | 3 99 32 90 32 74 64 89 74 47 Regions Visited 9 Branch Regions 6 Pre-discovered Areas 10 | . 2 1 2 1 . . 2 . 2 Known Exits Taken 5 | . . . . 1 1 1 1 1 . Unknown Exits Taken 4 | 1 1 1 1 . . . . . . Scrap Searched 15 | . . 2 3 . 4 1 3 2 . Spaces Dug 68 | . 18 . . 15 . 3 . 2 30 Terrain Destroyed 223 | . 31 . . 15 . 19 . 36 122 Melee 47 | . . . . 15 . 3 . 2 27 Projectile 42 | . 31 . . . . . . . 11 AOE 134 | . . . . . . 16 . 34 84 Terrain Rammed . | . . . . . . . . . . Walls Destroyed . | . . . . . . . . . . Machines Disabled . | . . . . . . . . . . Actions | -11 -10 -10 -8 -6 -6 -6 -6 -5 -5 --------- Run | Yrd Mat Sub Scr Fac Low Low Zio Pro Fac Total 12290 | 105 1407 1246 2286 1804 663 618 1186 547 2428 Wait 1150 | 4 396 49 22 179 49 96 3 45 307 Move 10548 | 75 871 1115 2224 1510 604 513 1156 493 1987 Hop 39 | . . . . 13 1 . . . 25 Pick Up 71 | 8 13 15 15 7 3 . 4 . 6 Fast Attach 52 | 7 3 1 5 20 2 . 8 . 6 Attach 18 | . . 4 1 4 . . 3 . 6 Detach 7 | . 2 . . 2 1 . . . 2 Swap 68 | . 30 15 1 3 1 5 . 2 11 Drop 73 | . 11 14 18 14 2 . 8 . 6 Fire 181 | 11 81 33 . 31 . 1 . 4 20 Melee 75 | . . . . 21 . 3 4 3 44 Ram . | . . . . . . . . . . Kick . | . . . . . . . . . . Crush . | . . . . . . . . . . Escape Stasis . | . . . . . . . . . . Rewire . | . . . . . . . . . . Trap . | . . . . . . . . . . Miscellaneous 8 | . . . . . . . . . 8 Route ------- -11/Scrapyard -10/Materials (discovered 6 exits: *Mat x3 / *Min x2 / *Sub) -10/Subcaves (discovered 2 exits: Mat / *Scr) -8/Scraptown (discovered 2 exits: *Fac x2) -6/Factory (discovered 2 exits: *Low x2) -6/Lower Caves -6/Lower Caves -6/Zion -5/Proximity Caves -5/Factory (discovered 8 exits: *Fac x4 / *Upp x2 / Ext x2) History --------- Turn | Location | Event 9 | -11/Scrapyard | Discovered new exit (range 15) 124 | -11/Scrapyard | Entered Materials 304 | -10/Materials | Build established: Mutant 539 | -10/Materials | Discovered new exit (range 7) 605 | -10/Materials | Repaired Assault Rifle 926 | -10/Materials | Discovered new exit (range 11) 1039 | -10/Materials | Discovered new exit (range 12) 1206 | -10/Materials | Discovered new exit (range 7) 1351 | -10/Materials | Discovered new exit (range 7) 1520 | -10/Materials | Discovered new exit (range 8) 1545 | -10/Materials | Learned location of 1 exit from Storage 1589 | -10/Materials | Learned 4 Subcaves zone layouts 1661 | -10/Materials | Learned Storage security intel 1668 | -10/Materials | Loaded intel: 26 trap records 1683 | -10/Materials | Learned Materials trap positions 1708 | -10/Materials | Identified exit to Materials 1708 | -10/Materials | Identified exit to Mines 1850 | -10/Materials | Entered Subcaves 1850 | -10/Subcaves | Accompanied by 1 ally 1851 | -10/Subcaves | Approached by a straggling Scientist 1851 | -10/Subcaves | Identified exit to Materials 1887 | -10/Subcaves | Shifting Twisted Machinery released Hvy. Riot Gun 1888 | -10/Subcaves | Shifting Twisted Machinery released Ripper 1950 | -10/Subcaves | Learned location of Zion (-6) 1950 | -10/Subcaves | Met a Zionite searching for "candidates" 2325 | -10/Subcaves | Ambushed by Subdwellers from Twisted Machinery 2366 | -10/Subcaves | Ambushed by Subdweller buried in earth 2414 | -10/Subcaves | Lost 3 parts (2p1n) 2487 | -10/Subcaves | Visited 4L-MR0's lab 2506 | -10/Subcaves | Found Maxwheels 2520 | -10/Subcaves | Found Prototype Device 2684 | -10/Subcaves | A Subdweller sparked back to life 2684 | -10/Subcaves | A Subdweller sparked back to life 2684 | -10/Subcaves | A Subdweller sparked back to life 2703 | -10/Subcaves | Core integrity fell below 50% 2772 | -10/Subcaves | Found Flightbrick 3193 | -10/Subcaves | Entered Scraptown 3193 | -8/Scraptown | Accompanied by 1 ally 3193 | -8/Scraptown | System corruption cleaned by C-Scrubber 3432 | -8/Scraptown | Scanned Subdweller tech in exchange for log data 3434 | -8/Scraptown | Learned Factory terminal intel 3435 | -8/Scraptown | Learned location of Armory (-3) 3436 | -8/Scraptown | Learned Factory garrison access intel 3437 | -8/Scraptown | Learned location of Testing (-3) 3455 | -8/Scraptown | Discovered new exit (range 5) 3549 | -8/Scraptown | Visited The Evicted 3568 | -8/Scraptown | Visited Cyclists 3610 | -8/Scraptown | Visited Science Testing Area 3798 | -8/Scraptown | Visited Awakened 3825 | -8/Scraptown | Visited UFD Registry 3877 | -8/Scraptown | Registered with UFD as "Metachip" 3890 | -8/Scraptown | Visited Observation Area 3940 | -8/Scraptown | Visited Cave Peace 4025 | -8/Scraptown | Visited LU-1G1's Boring Crew 4042 | -8/Scraptown | Visited Junk Repository 4077 | -8/Scraptown | Visited Science Guys 4117 | -8/Scraptown | Visited Botcube Research 4138 | -8/Scraptown | Visited Scrapoid Pod Storage 4168 | -8/Scraptown | Visited Scrap Suit Storage 4232 | -8/Scraptown | Visited Research Penetration Think Tank 4260 | -8/Scraptown | Visited Curators Association 4299 | -8/Scraptown | Received an X-ray algorithm 4650 | -8/Scraptown | Found Scrapoid Pod 4927 | -8/Scraptown | System corruption cleaned by C-Scrubber 5508 | -8/Scraptown | Found Scrap Suit 5544 | -8/Scraptown | Found Lrg. Botcube 5605 | -8/Scraptown | Discovered new exit (range 5) 5693 | -8/Scraptown | Met Optimus 5693 | -8/Scraptown | Accepted into 0bPrime 5759 | -8/Scraptown | Entered Factory 5759 | -6/Factory | Accompanied by 1 ally 5759 | -6/Factory | Evolved 8 slots: Propulsion x2, Utility x6 5760 | -6/Factory | Loaded intel: 25 terminal locations 5761 | -6/Factory | Loaded intel: 4 garrison access locations 5881 | -6/Factory | Spotted B-75 Beast 6262 | -6/Factory | Destroyed 7 combat bots 6270 | -6/Factory | Attached Flightbrick, gained temporary slots: Utility x3 6286 | -6/Factory | Lost 7 parts (1p1n4u1w) 6304 | -6/Factory | Lrg. Botcube activated 6318 | -6/Factory | Lrg. Botcube completed mutation into flying form, armed with 1 gun. 6375 | -6/Factory | Loaded intel: 7 recycling unit locations 6620 | -6/Factory | Build established: Scout 6689 | -6/Factory | Identified exit to Lower Caves 6853 | -6/Factory | Scrapoid reinforcements arrived 6855 | -6/Factory | Fabricated B-48 Gladiator? 6916 | -6/Factory | P-60 Hacker assimilated allied Gladiator 5b 7006 | -6/Factory | Entered Lower Caves 7006 | -6/Lower Caves | Accompanied by 3 allies 7015 | -6/Lower Caves | Lost 4 allies 7016 | -6/Lower Caves | Learned Factory stockpile data 7126 | -6/Lower Caves | Encountered a Warlord checkpoint 7212 | -6/Lower Caves | Discovered new exit (range 4) 7213 | -6/Lower Caves | Identified exit to Lower Caves 7307 | -6/Lower Caves | Entered another Lower Caves area 7307 | -6/Lower Caves | Accompanied by 3 allies 7308 | -6/Lower Caves | Encountered a Warlord checkpoint 7474 | -6/Lower Caves | Spotted B-75 Beast 7590 | -6/Lower Caves | Discovered new exit (range 11) 7618 | -6/Lower Caves | Identified exit to Zion 7626 | -6/Lower Caves | Entered Zion 7626 | -6/Zion | Accompanied by 2 allies 7674 | -6/Zion | Gained Derelict followers 7741 | -6/Zion | Given the Hacking Drone Bay 7790 | -6/Zion | Found Prototype Device 7839 | -6/Zion | Given A8's code to call for help 7857 | -6/Zion | Found Prototype Device 7857 | -6/Zion | Identified Bomb Factory No. 2 7929 | -6/Zion | Learned location of Quarantine (-2) 7990 | -6/Zion | Learned 4 Factory zone layouts 8000 | -6/Zion | Turned away by Imprinter 8009 | -6/Zion | Attempted to imprint without authorization 8009 | -6/Zion | Attacked by Zionites 8033 | -6/Zion | Destroyed Imprinter 8036 | -6/Zion | Extracted access codes from Imprinter's data core 8098 | -6/Zion | Spotted BK-HP2(B) 8099 | -6/Zion | Spotted 88-2GM(B) 8101 | -6/Zion | Core integrity fell below 50% 8120 | -6/Zion | Discovered new exit (range 9) 8124 | -6/Zion | Identified exit to Proximity Caves 8124 | -6/Zion | Identified Hacking Drone Bay 8125 | -6/Zion | Entered Proximity Caves 8218 | -5/Proximity Caves | Spotter reported a threat 8263 | -5/Proximity Caves | Spotter reported a threat 8306 | -5/Proximity Caves | Spotter reported a threat 8344 | -5/Proximity Caves | Learned Factory terminal intel 8358 | -5/Proximity Caves | Build established: Hacker-Mutant 8385 | -5/Proximity Caves | Discovered new exit (range 5) 8387 | -5/Proximity Caves | Identified exit to Factory 8387 | -5/Proximity Caves | Entered Factory 8387 | -5/Factory | Evolved 2 slots: Power x1, Propulsion x1 8390 | -5/Factory | Loaded intel: 28 terminal locations 8425 | -5/Factory | Discovered new exit (range 5) 8440 | -5/Factory | Identified exit to Upper Caves 8461 | -5/Factory | Loaded intel: 8 recycling unit locations 8461 | -5/Factory | Learned location of Protoforge (-2) 8736 | -5/Factory | Identified exit to Extension 8782 | -5/Factory | Learned 8 Factory zone layouts 8818 | -5/Factory | Identified exit to Factory 8864 | -5/Factory | Learned Extension security intel 8873 | -5/Factory | Loaded intel: 83 trap records 8874 | -5/Factory | Learned Armory security intel 8894 | -5/Factory | Learned Extension emergency access door positions 8987 | -5/Factory | Search patrols dispatched 9171 | -5/Factory | Repaired Hrd. Light Armor Plating 9287 | -5/Factory | Search patrols dispatched 9297 | -5/Factory | Fabricated Exp. Propulsion Shielding? 9587 | -5/Factory | Search patrols dispatched 9666 | -5/Factory | Self-destructed Last Messages --------------- 09648_ S-27 Virus unfolds itself. 09649_ Nuclear Reactor explodes. 09649_ S-27 Virus destroyed. 09649_ Neutrino Reactor explodes. 09649_ S-27 Virus destroyed. 09649_ Exp. Propulsion Shielding destroyed. 09650_ C-30 ARC bursts open, deploying its payload. 09650_ S-27 Virus unfolds itself. 09654_ The unstable cave ceiling collapses. 09657_ Neutrino Reactor explodes. 09657_ Door malfunctions. 09657_ Mic. Nuclear Core+ destroyed. 09657_ Acquired 4 matter. 09658_ Acquired 35 matter. 09658_ Acquired 7 matter. 09661_ S-27 Virus destroyed. 09662_ ALERT: Suspicious intruders detected, dispatching Cutter reinforcements to area. 09662_ Acquired 5 matter. Map ----- +----------------------------------------------------+ | !! #?????# #????# #???????????? | | !! #?????# #????# #???????????? | | #?????# #????# #???##??????? | | #?????# #????# #######"#######??????? | | ############## ###### # #???????? | | # #???????? | | ################ T### # #???????? | | #??????????????####?# # """ """ #???????? | | #???????????????????# # """ """ #???????? | | #???????????????????# + """ """ #???????? | | #???????????????????# # #???????? | | #???????????????????#^^ ^ # """ #???????? | | #?????????????????# ^^^ # """ ""#???????? | | #?????????????????# # """ Y"#???????? | | #?????????????????# # ""#???????? | | #?????????????????# # #???????? | | +?????????????????# ##+###########???????? | | #?????????????????# #??????????????? | | #?????????????????# ##### #??????????????? | | #?????????????????# #####+########???????? | | *#?????????????????# # #???????? | | ##?????????????????# # #???????? | | #################### # #???????? | | ^ # #???????? | | ^ # #???????? | | ^^ @ # #???????? | | ^ + #???????? | | ^ # #???????? | | # #???????? | | # #???????? | | ##############/###### # #???????? | | #???## #?# # #???????? | | #????# ss #?# ##############???????? | | #???## !#?# #????????????????????? | | #???# #?# #????????????????????? | | #??## !#?# ##############???????? | | #??# #?# # !! #???????? | | #??# ] #?# # !! #???????? | | #??# #?# # #???????? | | #??### [ #?# # #???????? | | ##### %=%= #?# # """ """ #???????? | | %== #?# + """ """ #???????? | | ##### #?# # """ """ #???????? | | #???##+ "####"#### + #???????? | | #????# "%" ^ # """ """ #???????? | | ########"######### ^ # """ """ #???????? | | ######### ^ # """ """ #???????? | | ! + < ^ ^ # #???????? | | !!] ######### ######+#################???????? | | %="" !#???????## ## #?????????????????? | +----------------------------------------------------+ Best States ------------- Heat Dissipation 51 Energy Generation 18 Energy Capacity 310 Matter Stores 300 Matter Capacity 300 Sight Range 16 Robot Scan Range 16 Terrain Scan Density 10 Armor Coverage 150 Resistance: TH 10 Core Shielding 30 Propulsion Shielding 90 Utility Shielding 66 Melee Speed Boost 20 Evasion (%) 62 Melee Accuracy 8 Recoil Reduction 2 Particle Charging 20 Offensive Hacking 34 Defensive Hacking 22 Item Schematics ----------------- Imp. Thermal Generator | -6/Zion | Archive Field Propulsion Drive | -6/Zion | Archive Lgt. Angular Momentum Engine | -6/Zion | Archive Variable Charge Gun | -6/Zion | Archive Imp. Particle Charger | -6/Zion | Archive KE Penetrator | -6/Zion | Archive Coil Gun | -6/Zion | Archive Adv. Coolant Injector | -6/Zion | Archive Imp. Remote Force Field | -6/Zion | Archive Hvy. Flak Cannon | -6/Zion | Archive Enh. Gauss Cannon | -6/Zion | Archive Imp. System Shield | -6/Zion | Archive Imp. Remote Datajack | -6/Zion | Archive Lrn. Tractor Beam | -6/Zion | Archive Fusion Compressor | -6/Zion | Archive Hvy. Mass Driver | -6/Zion | Archive Riot Gun | -6/Zion | Free Battle Cannon | -6/Zion | Free Flamer | -6/Zion | Free Hvy. Riot Gun | -6/Zion | Free Hvy. Battle Rifle | -6/Zion | Free Exp. Propulsion Shielding | -5/Factory | Hacked Exp. Utility Shielding | -5/Factory | Hacked Exp. Hacking Suite | -5/Factory | Hacked CPS Tube | -5/Factory | Scanalyzed Prc. Matter Filter | -5/Factory | Scanalyzed Com. Ion Cannon | -5/Factory | Scanalyzed Cld. Particle Cannon | -5/Factory | Scanalyzed Robot Schematics ------------------ B-48 Gladiator | -6/Zion | Archive Y-54 Guardian | -6/Zion | Archive E-15 Imp | -6/Zion | Archive Fabricated ------------ B-48 Gladiator | x3 | -6/Factory | Preloaded Exp. Propulsion Shielding | x1 | -5/Factory Repaired ---------- Assault Rifle | 38% | -10/Materials Hrd. Light Armor Plating | 12% | -5/Factory Studied --------- Mic. Nuclear Core | -5/Factory | Hacked Power Sword | -5/Factory | Hacked Lrn. Missile Launcher | -5/Factory | Hacked Alien Tech Used ----------------- None Achievements -------------- None Challenges ------------ None Game ------ Seed OvertunedFissionMindspike Manual? 0 Play Time 02:51:39 Cumulative 729.4 hours Start 2026.07.15 @ 17:58:30 End 2026.07.15 @ 20:52:49 Sessions 1 Manual Loads 0 Difficulty Rogue Special Mode None Game No. 249 Rogue 245 Adventurer 4 Explorer 0 Win Type - Total 21 Types 9/2/6/0/0/0/2/2/0/0 Lore% 79 Gallery% 74 Achievement% 56 Wizard Run 0 Options --------- Layout 1 ASCII 0 Keyboard 0 Movement Arrows Keybinds 0 Fullscreen 1 Font 40/SmallcapsGlow Map View 50x40 Zoom Use 0% Tactical HUD 1 Map Filters NONE Filters NONE Steam 1 RUN: 96feb576-75be-406e-a5b7-d6c5742168ea